lending/lending_fUSD_20240207
["ID","MTS","AMOUNT","RATE_DAILY","PERIOD"]
[313442587,1707348644690,-500.0,0.00049315,61]
[313442588,1707348644699,-382.38460915,0.00049315,61]
[313442589,1707348644718,-120.06244535,0.00049315,61]
[313442590,1707348644727,-500.0,0.00049315,61]
[313442591,1707348644736,-610.98,0.00049315,61]
[313442592,1707348644746,-90.82220465,0.00049315,61]
[313442593,1707348644760,-410.17779535,0.00049315,61]
[313442594,1707348644769,-45.2208172,0.00049315,61]
[313442595,1707348644781,-591.0591828,0.00049315,61]
[313442596,1707348644790,-500.0,0.00049315,61]
[313442597,1707348644799,-500.0,0.00049315,61]
[313442598,1707348644808,-500.0,0.00049315,61]
[313442599,1707348644817,-500.0,0.00049315,61]
[313442600,1707348644826,-500.0,0.00049315,61]
[313442601,1707348644835,-500.0,0.00049315,61]
[313442602,1707348644844,-500.0,0.00049315,61]
[313442603,1707348644853,-500.0,0.00049315,61]
[313442604,1707348644863,-500.0,0.00049315,61]
[313442605,1707348644872,-500.0,0.00049315,61]
[313442606,1707348644882,-500.0,0.00049315,61]
[313442607,1707348644893,-500.0,0.00049315,61]
[313442608,1707348644903,-500.0,0.00049315,61]
[313442609,1707348644912,-750.43,0.00049315,61]
[313442610,1707348644922,-500.0,0.00049315,61]
[313442611,1707348644931,-500.0,0.00049315,61]
[313442612,1707348644941,-500.0,0.00049315,61]
[313442613,1707348644950,-500.0,0.00049315,61]
[313442614,1707348644959,-500.0,0.00049315,61]
[313442615,1707348644969,-500.0,0.00049315,61]
[313442616,1707348644979,-576.93,0.00049315,61]
[313442617,1707348644990,-527.51,0.00049315,61]
[313442618,1707348644999,-500.0,0.00049315,61]
[313442619,1707348645009,-500.0,0.00049315,61]
[313442620,1707348645019,-89.3980942,0.00049315,61]
[313442621,1707348645036,-410.6019058,0.00049315,61]
[313442622,1707348645045,-500.0,0.00049315,61]
[313442623,1707348645055,-500.0,0.00049315,61]
[313442624,1707348645064,-500.0,0.00049315,61]
[313442625,1707348645073,-540.75064904,0.00049315,61]
[313442626,1707348645082,-500.0,0.00049315,61]
[313442627,1707348645091,-653.89,0.00049315,61]
[313442628,1707348645100,-839.56,0.00049315,61]
[313442629,1707348645109,-500.0,0.00049315,61]
[313442630,1707348645118,-500.0,0.00049315,61]
[313442631,1707348645128,-355.21357265,0.00049315,61]
[313442632,1707348645137,-140.01770562,0.00049315,61]
[313442633,1707348645164,-586.44229438,0.00049315,61]
[313442634,1707348645173,-500.0,0.00049315,61]
[313442635,1707348645183,-500.0,0.00049315,61]
[313442636,1707348645192,-500.0,0.00049315,61]
[313442637,1707348645201,-500.0,0.00049315,61]
[313442638,1707348645210,-500.0,0.00049315,61]
[313442639,1707348645219,-500.0,0.00049315,61]
[313442640,1707348645228,-589.14,0.00049315,61]
[313442641,1707348645238,-500.0,0.00049315,61]
[313442642,1707348645247,-500.0,0.00049315,61]
[313442643,1707348645255,-500.0,0.00049315,61]
[313442644,1707348645264,-517.42,0.00049315,61]
[313442645,1707348645273,-893.72,0.00049315,61]
[313442646,1707348645282,-500.0,0.00049315,61]
[313442647,1707348645290,-500.0,0.00049315,61]
[313442648,1707348645300,-500.0,0.00049315,61]
[313442649,1707348645310,-500.0,0.00049315,61]
[313442650,1707348645323,-500.0,0.00049315,61]
[313442651,1707348645332,-500.0,0.00049315,61]
[313442652,1707348645341,-500.0,0.00049315,61]
[313442653,1707348645350,-500.0,0.00049315,61]
[313442654,1707348645360,-500.0,0.00049315,61]
[313442655,1707348645369,-500.0,0.00049315,61]
[313442656,1707348645379,-500.0,0.00049315,61]
[313442657,1707348645388,-500.0,0.00049315,61]
[313442658,1707348645399,-500.0,0.00049315,61]
[313442659,1707348645409,-500.0,0.00049315,61]
[313442660,1707348645418,-150.18487599,0.00049315,61]
[313442661,1707348645427,-626.45761443,0.00049315,61]
[313442662,1707348645436,-500.0,0.00049315,61]
[313442663,1707348645446,-1000.0,0.00049315,7]
[313442664,1707348645455,-500.0,0.00049315,61]
[313442665,1707348645464,-500.0,0.00049315,61]
[313442666,1707348645473,-500.0,0.00049315,61]
[313442667,1707348645482,-639.3,0.00049315,61]
[313442668,1707348645491,-500.0,0.00049315,61]
[313442669,1707348645501,-500.0,0.00049315,61]
[313442670,1707348645511,-502.65276461,0.00049315,61]
[313442671,1707348645520,-500.0,0.00049315,61]
[313442672,1707348645529,-426.84710544,0.00049315,61]
[313442673,1707348645539,-695.73,0.00049315,61]
[313442674,1707348645547,-500.0,0.00049315,61]
[313442675,1707348645556,-500.0,0.00049315,61]
[313442676,1707348645565,-500.0,0.00049315,61]
[313442677,1707348645722,-774.19,0.00049315,61]
[313442678,1707348645741,-540.27,0.00049315,61]
[313442679,1707348645750,-150.68323015,0.00049315,61]
[313442680,1707348645759,-500.0,0.00049315,61]
[313442681,1707348645769,-554.97,0.00049315,61]
[313442682,1707348645778,-500.0,0.00049315,61]
[313442684,1707348645787,-500.0,0.00049315,61]
[313442686,1707348645796,-650.93,0.00049315,61]
[313442687,1707348645805,-1008.84,0.00049315,30]
[313442688,1707348645815,-500.0,0.00049315,61]
[313442689,1707348645826,-500.0,0.00049315,61]
[313442690,1707348645835,-500.0,0.00049315,61]
[313442691,1707348645844,-500.0,0.00049315,61]
[313442692,1707348645853,-500.0,0.00049315,30]
[313442693,1707348645862,-500.0,0.00049315,61]
[313442694,1707348645872,-500.0,0.00049315,61]
[313442695,1707348645881,-500.0,0.00049315,61]
[313442696,1707348645891,-500.0,0.00049315,61]
[313442697,1707348645900,-591.44,0.00049315,61]
[313442698,1707348645909,-500.0,0.00049315,61]
[313442699,1707348645918,-219.8493112,0.00049315,61]
[313442700,1707348645927,-660.2,0.00049315,61]
[313442701,1707348645935,-1489.51,0.00049315,61]
[313442702,1707348645944,-500.0,0.00049315,61]
[313442703,1707348645953,-617.35,0.00049315,2]
[313442704,1707348645962,-500.0,0.00049315,61]
[313442705,1707348645971,-579.92141968,0.00049315,61]
[313442706,1707348645982,-500.0,0.00049315,61]
[313442707,1707348645991,-611.67666371,0.00049315,61]
[313442708,1707348646001,-500.0,0.00049315,61]
[313442709,1707348646011,-500.0,0.00049315,61]
[313442710,1707348646020,-500.0,0.00049315,61]
[313442711,1707348646029,-500.0,0.00049315,61]
[313442712,1707348646039,-500.0,0.00049315,61]
[313442713,1707348646048,-618.54,0.00049315,61]
[313442714,1707348646057,-500.0,0.00049315,61]
[313442715,1707348646066,-500.0,0.00049315,61]
[313442716,1707348646075,-500.0,0.00049315,61]
[313442717,1707348646084,-500.0,0.00049315,61]
[313442718,1707348646093,-500.0,0.00049315,31]
[313442719,1707348646102,-500.0,0.00049315,61]
[313442720,1707348646111,-500.0,0.00049315,61]
[313442721,1707348646120,-500.0,0.00049315,61]
[313442722,1707348646129,-500.0,0.00049315,61]
[313442723,1707348646139,-956.32,0.00049315,2]
[313442724,1707348646148,-500.0,0.00049315,61]
[313442725,1707348646157,-500.0,0.00049315,20]
[313442726,1707348646167,-500.0,0.00049315,61]
[313442727,1707348646176,-500.0,0.00049315,61]
[313442728,1707348646186,-500.0,0.00049315,61]
[313442730,1707348646196,-500.0,0.00049315,61]
[313442731,1707348646207,-500.0,0.00049315,61]
[313442732,1707348646217,-500.0,0.00049315,61]
[313442733,1707348646226,-902.59,0.00049315,61]
[313442734,1707348646236,-221.2110974,0.00049315,61]
[313442735,1707348646245,-500.0,0.00049315,61]
[313442736,1707348646254,-500.0,0.00049315,61]
[313442737,1707348646265,-511.3,0.00049315,61]
[313442738,1707348646274,-500.0,0.00049315,61]
[313442739,1707348646283,-500.0,0.00049315,61]
[313442740,1707348646293,-500.0,0.00049315,61]
[313442741,1707348646302,-500.0,0.00049315,61]
[313442742,1707348646314,-500.0,0.00049315,61]
[313442744,1707348646325,-500.0,0.00049315,61]
[313442746,1707348646334,-500.0,0.00049315,61]
[313442747,1707348646343,-500.0,0.00049315,61]
[313442748,1707348646353,-500.0,0.00049315,61]
[313442749,1707348646363,-500.0,0.00049315,61]
[313442750,1707348646373,-500.0,0.00049315,61]
[313442751,1707348646382,-1318.9,0.00049315,61]
[313442752,1707348646393,-827.24,0.00049315,61]
[313442753,1707348646403,-500.0,0.00049315,61]
[313442754,1707348646413,-500.0,0.00049315,61]
[313442755,1707348646422,-170.68559379,0.00049315,61]
[313442756,1707348646431,-500.0,0.00049315,61]
[313442757,1707348646441,-575.41,0.00049315,61]
[313442758,1707348646451,-500.0,0.00049315,61]
[313442759,1707348646460,-500.0,0.00049315,61]
[313442760,1707348646470,-500.0,0.00049315,61]
[313442761,1707348646479,-483.49067129,0.00049315,61]
[313442762,1707348646488,-500.0,0.00049315,61]
[313442763,1707348646498,-775.05,0.00049315,61]
[313442764,1707348646507,-500.0,0.00049315,61]
[313442765,1707348646516,-697.8,0.00049315,61]
[313442766,1707348646526,-500.0,0.00049315,61]
[313442767,1707348646535,-500.0,0.00049315,61]
[313442768,1707348646544,-500.0,0.00049315,61]
[313442769,1707348646554,-1149.98,0.00049315,61]
[313442770,1707348646563,-500.0,0.00049315,61]
[313442771,1707348646572,-686.07,0.00049315,61]
[313442772,1707348646581,-500.0,0.00049315,61]
[313442773,1707348646591,-500.0,0.00049315,61]
[313442774,1707348646600,-500.0,0.00049315,61]
[313442775,1707348646609,-500.0,0.00049315,61]
[313442776,1707348646618,-500.0,0.00049315,61]
[313442777,1707348646627,-500.0,0.00049315,61]
[313442778,1707348646636,-500.0,0.00049315,61]
[313442779,1707348646645,-500.0,0.00049315,61]
[313442780,1707348646654,-500.0,0.00049315,61]
[313442781,1707348646664,-500.0,0.00049315,61]
[313442782,1707348646674,-500.0,0.00049315,61]
[313442783,1707348646683,-500.0,0.00049315,61]
[313442784,1707348646693,-906.19,0.00049315,61]
[313442785,1707348646702,-500.0,0.00049315,61]
[313442786,1707348646711,-579.53,0.00049315,61]
[313442787,1707348646720,-500.66277425,0.00049315,61]
[313442788,1707348646729,-600.0,0.00049315,61]
[313442789,1707348646739,-500.0,0.00049315,61]
[313442790,1707348646748,-630.38,0.00049315,61]
[313442791,1707348646757,-500.0,0.00049315,61]
[313442792,1707348646766,-500.0,0.00049315,61]
[313442793,1707348646775,-500.0,0.00049315,61]
[313442794,1707348646784,-500.0,0.00049315,61]
[313442795,1707348646793,-888.78191606,0.00049315,40]
[313442796,1707348646802,-500.0,0.00049315,61]
[313442797,1707348646811,-512.87,0.00049315,61]
[313442798,1707348646821,-500.0,0.00049315,61]
[313442799,1707348646829,-500.0,0.00049315,61]
[313442800,1707348646838,-500.0,0.00049315,61]
[313442801,1707348646848,-659.57,0.00049315,61]
[313442802,1707348646857,-917.48,0.00049315,61]
[313442803,1707348646866,-500.0,0.00049315,61]
[313442804,1707348646875,-1447.85,0.00049315,61]
[313442805,1707348646884,-549.49,0.00049315,61]
[313442806,1707348646893,-500.0,0.00049315,61]
[313442807,1707348646902,-500.0,0.00049315,61]
[313442808,1707348646911,-623.44906305,0.00049315,61]
[313442809,1707348646920,-853.58,0.00049315,61]
[313442810,1707348646930,-500.0,0.00049315,61]
[313442811,1707348646939,-500.0,0.00049315,61]
[313442812,1707348646948,-500.0,0.00049315,61]
[313442813,1707348646957,-622.02,0.00049315,61]
[313442814,1707348646967,-500.0,0.00049315,61]
[313442815,1707348646976,-500.0,0.00049315,61]
[313442816,1707348646985,-656.84,0.00049315,61]
[313442817,1707348646994,-500.0,0.00049315,61]
[313442818,1707348647003,-500.0,0.00049315,61]
[313442819,1707348647012,-625.13,0.00049315,61]
[313442820,1707348647021,-500.0,0.00049315,61]
[313442821,1707348647030,-879.97,0.00049315,61]
[313442822,1707348647040,-500.0,0.00049315,61]
[313442823,1707348647049,-500.0,0.00049315,61]
[313442824,1707348647058,-491.54449466,0.00049315,61]
[313442825,1707348647067,-500.0,0.00049315,61]
[313442826,1707348647077,-500.0,0.00049315,61]
[313442827,1707348647086,-543.71,0.00049315,61]
[313442828,1707348647095,-1629.85,0.00049315,61]
[313442829,1707348647104,-500.0,0.00049315,61]
[313442830,1707348647114,-500.0,0.00049315,61]
[313442831,1707348647123,-605.19,0.00049315,61]
[313442832,1707348647132,-500.0,0.00049315,61]
[313442833,1707348647142,-500.0,0.00049315,61]
[313442834,1707348647151,-500.0,0.00049315,61]
[313442835,1707348647161,-1029.64,0.00049315,61]
[313442836,1707348647170,-1290.2,0.00049315,61]
[313442837,1707348647179,-1676.37,0.00049315,61]
[313442838,1707348647188,-1097.32,0.00049315,61]
[313442839,1707348647197,-500.0,0.00049315,61]
[313442840,1707348647206,-500.0,0.00049315,61]
[313442841,1707348647215,-500.0,0.00049315,61]
[313442842,1707348647224,-535.55,0.00049315,61]
[313442843,1707348647233,-500.0,0.00049315,61]
[313442844,1707348647242,-500.0,0.00049315,61]
[313442845,1707348647252,-500.0,0.00049315,61]
[313442846,1707348647261,-785.7,0.00049315,61]
[313442847,1707348647270,-552.4,0.00049315,61]
[313442848,1707348647280,-500.0,0.00049315,61]
[313442849,1707348647289,-500.0,0.00049315,61]
[313442850,1707348647298,-500.0,0.00049315,61]
[313442851,1707348647308,-500.0,0.00049315,61]
[313442852,1707348647319,-500.0,0.00049315,61]
[313442853,1707348647328,-500.0,0.00049315,61]
[313442854,1707348647338,-500.0,0.00049315,61]
[313442855,1707348647347,-500.0,0.00049315,61]
[313442856,1707348647357,-553.97,0.00049315,61]
[313442857,1707348647366,-556.88,0.00049315,60]
[313442858,1707348647376,-500.0,0.00049315,61]
[313442859,1707348647385,-500.0,0.00049315,61]
[313442860,1707348647396,-514.40337568,0.00049315,61]
[313442861,1707348647405,-1253.29,0.00049315,61]
[313442862,1707348647415,-500.0,0.00049315,61]
[313442863,1707348647424,-500.0,0.00049315,61]
[313442864,1707348647433,-1099.69,0.00049315,2]
[313442865,1707348647443,-521.42,0.00049315,61]
[313442866,1707348647453,-545.86,0.00049315,61]
[313442867,1707348647462,-960.82,0.00049315,61]
[313442868,1707348647471,-500.0,0.00049315,61]
[313442869,1707348647481,-599.71,0.00049315,61]
[313442870,1707348647491,-816.22,0.00049315,61]
[313442871,1707348647500,-500.0,0.00049315,61]
[313442872,1707348647510,-1204.86,0.00049315,61]
[313442873,1707348647519,-991.26,0.00049315,61]
[313442874,1707348647528,-500.0,0.00049315,61]
[313442875,1707348647537,-1115.59,0.00049315,61]
[313442876,1707348647547,-500.0,0.00049315,61]
[313442877,1707348647557,-500.0,0.00049315,61]
[313442878,1707348647566,-247.96319945,0.00049315,61]
[313442879,1707348647576,-500.0,0.00049315,61]
[313442880,1707348647585,-500.0,0.00049315,61]
[313442881,1707348647594,-607.13,0.00049315,61]
[313442882,1707348647604,-500.0,0.00049315,61]
[313442883,1707348647614,-1214.32,0.00049315,61]
[313442884,1707348647623,-1245.64,0.00049315,61]
[313442885,1707348647632,-500.0,0.00049315,61]
[313442886,1707348647642,-735.27,0.00049315,61]
[313442887,1707348647651,-500.0,0.00049315,61]
[313442888,1707348647661,-380.89222203,0.00049315,61]
[313442889,1707348647670,-1217.46,0.00049315,61]
[313442890,1707348647679,-539.54,0.00049315,61]
[313442891,1707348647688,-1048.52,0.00049315,61]
[313442892,1707348647698,-500.0,0.00049315,61]
[313442893,1707348647707,-500.0,0.00049315,61]
[313442894,1707348647717,-1425.48,0.00049315,61]
[313442895,1707348647726,-500.0,0.00049315,120]
[313442896,1707348647735,-500.0,0.00049315,61]
[313442897,1707348647745,-500.0,0.00049315,61]
[313442898,1707348647754,-500.0,0.00049315,61]
[313442899,1707348647763,-500.0,0.00049315,61]
[313442900,1707348647773,-500.0,0.00049315,61]
[313442901,1707348647782,-590.92,0.00049315,61]
[313442902,1707348647791,-500.0,0.00049315,61]
[313442903,1707348647800,-1067.29,0.00049315,61]
[313442904,1707348647810,-542.18,0.00049315,61]
[313442905,1707348647820,-500.0,0.00049315,61]
[313442906,1707348647829,-500.0,0.00049315,61]
[313442907,1707348647839,-2000.0,0.00049315,120]
[313442908,1707348647848,-500.0,0.00049315,61]
[313442909,1707348647857,-500.0,0.00049315,61]
[313442910,1707348647867,-564.73,0.00049315,61]
[313442911,1707348647876,-500.0,0.00049315,61]
[313442912,1707348648170,-500.0,0.00049315,61]
[313442913,1707348648195,-500.0,0.00049315,61]
[313442914,1707348648204,-756.53,0.00049315,61]
[313442915,1707348648213,-500.0,0.00049315,61]
[313442916,1707348648222,-500.0,0.00049315,61]
[313442917,1707348648231,-500.0,0.00049315,61]
[313442918,1707348648240,-1000.0,0.00049315,31]
[313442919,1707348648249,-500.0,0.00049315,61]
[313442920,1707348648259,-216.2426342,0.00049315,61]
[313442921,1707348648269,-1397.48,0.00049315,61]
[313442922,1707348648278,-500.0,0.00049315,61]
[313442923,1707348648288,-980.1,0.00049315,61]
[313442924,1707348648297,-164.43,0.00049315,61]
[313442925,1707348648306,-500.0,0.00049315,61]
[313442926,1707348648319,-1371.28,0.00049315,61]
[313442927,1707348648329,-500.0,0.00049315,61]
[313442928,1707348648339,-500.0,0.00049315,61]
[313442929,1707348648349,-1724.97,0.00049315,61]
[313442930,1707348648358,-500.0,0.00049315,61]
[313442931,1707348648367,-862.06,0.00049315,61]
[313442932,1707348648377,-500.0,0.00049315,61]
[313442933,1707348648387,-500.0,0.00049315,61]
[313442934,1707348648397,-500.0,0.00049315,61]
[313442935,1707348648407,-500.0,0.00049315,5]
[313442936,1707348648417,-1119.82,0.00049315,61]
[313442937,1707348648427,-500.0,0.00049315,61]
[313442938,1707348648437,-500.0,0.00049315,61]
[313442939,1707348648446,-500.0,0.00049315,61]
[313442940,1707348648456,-1247.09,0.00049315,61]
[313442941,1707348648466,-576.93891392,0.00049315,61]
[313442942,1707348648475,-504.08336189,0.00049315,61]
[313442943,1707348648485,-500.0,0.00049315,61]
[313442944,1707348648494,-500.0,0.00049315,61]
[313442945,1707348648504,-500.0,0.00049315,61]
[313442946,1707348648513,-500.0,0.00049315,61]
[313442947,1707348648523,-500.0,0.00049315,61]
[313442948,1707348648532,-822.99,0.00049315,61]
[313442949,1707348648543,-671.41,0.00049315,61]
[313442950,1707348648552,-500.0,0.00049315,61]
[313442951,1707348648561,-500.0,0.00049315,14]
[313442952,1707348648571,-500.0,0.00049315,61]
[313442953,1707348648580,-500.0,0.00049315,61]
[313442954,1707348648589,-1257.3,0.00049315,61]
[313442955,1707348648599,-551.77667777,0.00049315,61]
[313442956,1707348648608,-1256.13,0.00049315,61]
[313442957,1707348648618,-500.0,0.00049315,61]
[313442958,1707348648627,-500.0,0.00049315,61]
[313442959,1707348648637,-500.0,0.00049315,61]
[313442960,1707348648647,-500.0,0.00049315,61]
[313442961,1707348648656,-504.19,0.00049315,61]
[313442962,1707348648666,-629.55,0.00049315,61]
[313442963,1707348648676,-500.0,0.00049315,61]
[313442964,1707348648685,-500.0,0.00049315,61]
[313442965,1707348648694,-500.0,0.00049315,61]
[313442966,1707348648704,-753.98,0.00049315,61]
[313442967,1707348648716,-765.98,0.00049315,61]
[313442968,1707348648725,-500.0,0.00049315,61]
[313442969,1707348648735,-500.0,0.00049315,61]
[313442970,1707348648744,-500.0,0.00049315,61]
[313442971,1707348648753,-500.0,0.00049315,61]
[313442972,1707348648762,-500.0,0.00049315,61]
[313442973,1707348648771,-500.0,0.00049315,61]
[313442974,1707348648781,-500.0,0.00049315,61]
[313442975,1707348648789,-500.0,0.00049315,61]
[313442976,1707348648798,-500.0,0.00049315,61]
[313442977,1707348648807,-500.0,0.00049315,61]
[313442978,1707348648816,-1135.72,0.00049315,61]
[313442979,1707348648825,-1183.01,0.00049315,61]
[313442980,1707348648834,-500.0,0.00049315,61]
[313442981,1707348648843,-1458.22,0.00049315,61]
[313442982,1707348648853,-1221.45,0.00049315,61]
[313442983,1707348648862,-500.0,0.00049315,61]
[313442984,1707348648871,-1202.43,0.00049315,31]
[313442985,1707348648880,-500.0,0.00049315,61]
[313442986,1707348648889,-500.0,0.00049315,61]
[313442987,1707348648898,-500.0,0.00049315,61]
[313442988,1707348648907,-500.0,0.00049315,61]
[313442989,1707348648916,-540.1699331,0.00049315,61]
[313442990,1707348648926,-500.0,0.00049315,61]
[313442991,1707348648934,-500.0,0.00049315,61]
[313442992,1707348648943,-1423.65,0.00049315,61]
[313442993,1707348648953,-500.0,0.00049315,61]
[313442994,1707348648962,-609.16,0.00049315,61]
[313442995,1707348648971,-500.0,0.00049315,61]
[313442996,1707348648980,-608.44,0.00049315,61]
[313442997,1707348648989,-635.22,0.00049315,61]
[313442998,1707348648998,-500.21,0.00049315,61]
[313442999,1707348649007,-721.04,0.00049315,61]
[313443000,1707348649016,-994.44,0.00049315,61]
[313443001,1707348649025,-500.0,0.00049315,61]
[313443002,1707348649034,-500.0,0.00049315,61]
[313443003,1707348649043,-500.0,0.00049315,61]
[313443004,1707348649053,-500.0,0.00049315,61]
[313443005,1707348649062,-500.0,0.00049315,61]
[313443006,1707348649072,-500.0,0.00049315,61]
[313443007,1707348649081,-500.0,0.00049315,61]
[313443008,1707348649090,-1163.55,0.00049315,61]
[313443009,1707348649099,-713.28,0.00049315,61]
[313443010,1707348649109,-500.0,0.00049315,61]
[313443011,1707348649118,-500.0,0.00049315,61]
[313443012,1707348649127,-500.0,0.00049315,61]
[313443013,1707348649136,-500.0,0.00049315,61]
[313443014,1707348649145,-723.77,0.00049315,61]
[313443015,1707348649153,-1287.07,0.00049315,61]
[313443016,1707348649162,-500.0,0.00049315,61]
[313443017,1707348649172,-1145.83,0.00049315,61]
[313443018,1707348649181,-1145.83,0.00049315,61]
[313443019,1707348649190,-1145.83,0.00049315,61]
[313443020,1707348649199,-1145.83,0.00049315,61]
[313443021,1707348649208,-1145.83,0.00049315,61]
[313443022,1707348649217,-500.0,0.00049315,61]
[313443023,1707348649226,-1145.83,0.00049315,61]
[313443024,1707348649235,-1145.83,0.00049315,61]
[313443025,1707348649245,-500.0,0.00049315,61]
[313443026,1707348649254,-500.0,0.00049315,61]
[313443027,1707348649263,-1145.83,0.00049315,61]
[313443028,1707348649272,-1191.23,0.00049315,61]
[313443029,1707348649281,-1145.83,0.00049315,61]
[313443030,1707348649291,-1145.83,0.00049315,61]
[313443031,1707348649300,-1145.83,0.00049315,61]
[313443032,1707348649309,-1145.83,0.00049315,61]
[313443033,1707348649322,-601.87,0.00049315,61]
[313443034,1707348649331,-1145.83,0.00049315,61]
[313443035,1707348649340,-1145.83,0.00049315,61]
[313443036,1707348649349,-1145.83,0.00049315,61]
[313443037,1707348649358,-1145.83,0.00049315,61]
[313443038,1707348649368,-500.0,0.00049315,61]
[313443039,1707348649377,-1145.83,0.00049315,61]
[313443040,1707348649386,-500.0,0.00049315,61]
[313443041,1707348649397,-513.52,0.00049315,61]
[313443042,1707348649406,-1545.33,0.00049315,61]
[313443043,1707348649415,-500.0,0.00049315,61]
[313443044,1707348649425,-500.0,0.00049315,61]
[313443045,1707348649434,-771.89,0.00049315,61]
[313443046,1707348649443,-732.27,0.00049315,61]
[313443047,1707348649452,-1243.7,0.00049315,61]
[313443048,1707348649462,-500.0,0.00049315,61]
[313443049,1707348649471,-588.06,0.00049315,61]
[313443050,1707348649481,-500.0,0.00049315,7]
[313443051,1707348649491,-500.0,0.00049315,61]
[313443052,1707348649500,-500.0,0.00049315,61]
[313443053,1707348649509,-577.56,0.00049315,61]
[313443054,1707348649518,-675.26,0.00049315,61]
[313443055,1707348649528,-2173.71,0.00049315,31]
[313443056,1707348649537,-605.05,0.00049315,61]
[313443057,1707348649546,-500.0,0.00049315,61]
[313443058,1707348649555,-741.63,0.00049315,61]
[313443059,1707348649564,-500.0,0.00049315,61]
[313443060,1707348649574,-500.0,0.00049315,61]
[313443061,1707348649583,-970.93,0.00049315,61]
[313443062,1707348649592,-180.77740144,0.00049315,61]
[313443063,1707348649602,-549.22078407,0.00049315,61]
[313443064,1707348649611,-500.0,0.00049315,61]
[313443065,1707348649621,-1046.91,0.00049315,61]
[313443066,1707348649630,-660.36,0.00049315,61]
[313443067,1707348649639,-500.0,0.00049315,61]
[313443068,1707348649648,-950.75,0.00049315,61]
[313443069,1707348649658,-740.91,0.00049315,61]
[313443070,1707348649667,-581.49,0.00049315,61]
[313443071,1707348649676,-538.25,0.00049315,7]
[313443072,1707348649686,-500.0,0.00049315,61]
[313443073,1707348649694,-500.0,0.00049315,61]
[313443074,1707348649704,-500.0,0.00049315,61]
[313443075,1707348649713,-500.0,0.00049315,61]
[313443076,1707348649722,-500.0,0.00049315,61]
[313443077,1707348649731,-1272.33,0.00049315,61]
[313443078,1707348649741,-624.06,0.00049315,61]
[313443079,1707348649750,-500.0,0.00049315,61]
[313443080,1707348649759,-500.0,0.00049315,61]
[313443081,1707348649768,-1493.03,0.00049315,61]
[313443082,1707348649778,-500.0,0.00049315,61]
[313443083,1707348649787,-500.0,0.00049315,61]
[313443084,1707348649796,-594.71264108,0.00049315,61]
[313443085,1707348649806,-602.06,0.00049315,61]
[313443086,1707348649815,-675.36,0.00049315,61]
[313443087,1707348649825,-538.07,0.00049315,61]
[313443088,1707348649834,-500.0,0.00049315,61]
[313443089,1707348649844,-500.0,0.00049315,61]
[313443090,1707348649853,-572.69,0.00049315,61]
[313443091,1707348649862,-500.0,0.00049315,61]